[Event "FIDE WYCC Open U14 2023"]
[Site "Montesilvano"]
[Date "2023.11.16"]
[Round "4.26"]
[White "Tregubenko, Nikolay"]
[Black "Tamer Waguih, Farid"]
[Result "1-0"]
[ECO "B17"]
[WhiteElo "2138"]
[BlackElo "1893"]
[Annotator "RC"]
[PlyCount "107"]
[EventDate "2023.11.13"]
[EventType "swiss"]
[EventCountry "ITA"]
[SourceTitle "playchess.com"]
[Source "ChessBase"]
[SourceQuality "1"]
[TimeControl "40/5400+30:1800+30"]

1. e4 {[%emt 0:00:02]} c6 {[%emt 0:00:07]} 2. d4 {[%emt 0:00:45]} d5 {[%emt 0:00:04]} 3. Nc3 {[%emt 0:00:29]} dxe4 {[%emt 0:00:05]} 4. Nxe4 {[%emt 0:00:09]} Nd7 {[%emt 0:00:04]} 5. Nf3 {[%emt 0:01:42]} Ngf6 {[%emt 0:00:25]} 6. Ng3 {[%emt 0:01:37]} e6 {[%emt 0:02:36]} 7. Bd3 {[%emt 0:11:13]} Bd6 {[%emt 0:01:36]} 8. O-O {[%emt 0:00:12]} O-O {[%emt 0:00:50]} 9. c4 {[%emt 0:02:36]} b6 {[%emt 0:03:16]} 10. b3 {[%emt 0:01:34]} Bb7 {[%emt 0:04:35]} 11. Bb2 {[%emt 0:00:21]} Qc7 {[%emt 0:01:44]} 12. Bc2 {[%emt 0:09:36]} Rad8 {[%emt 0:03:42]} 13. Qd3 {[%emt 0:18:53]} c5 {[%emt 0:07:41]} 14. Ng5 {[%emt 0:10:03]} h6 {[%emt 0:04:32]} 15. Nf3 {[%emt 0:12:46]} cxd4 {[%emt 0:13:39]} 16. Nxd4 {[%emt 0:01:55]} Nc5 {[%emt 0:02:36]} 17. Qe2 {[%emt 0:00:43]} Be5 {[%emt 0:11:23]} 18. Rad1 {[%emt 0:00:36]} Rd7 {[%emt 0:03:56]} 19. f4 {[%emt 0:05:56]} Bxd4+ {[%emt 0:00:36]} 20. Bxd4 {[%emt 0:01:22]} Rfd8 {[%emt 0:06:45]} 21. Bxf6 {[%emt 0:00:12]} Rxd1 {[%emt 0:01:46]} 22. Rxd1 {[%emt 0:01:38]} gxf6 {[%emt 0:04:24]} 23. b4 {[%emt 0:10:06]} Rxd1+ {[%emt 0:02:00]} 24. Qxd1 {[%emt 0:00:35]} Nd7 {[%emt 0:01:49]} 25. Qd4 {[%emt 0:00:16]} Kf8 {[%emt 0:02:12]} 26. Ba4 {[%emt 0:02:40]} Bc6 {[%emt 0:02:31]} 27. Bxc6 {[%emt 0:00:02]} Qxc6 {[%emt 0:00:01]} 28. Ne4 {[%emt 0:00:46]} Ke7 {[%emt 0:02:34]} 29. h3 {[%emt 0:01:48]} e5 {[%emt 0:01:31]} 30. fxe5 {[%emt 0:00:45]} fxe5 {[%emt 0:01:17]} 31. Qd3 {[%emt 0:00:06]} Nf8 {[%emt 0:04:41]} 32. Nc3 {[%emt 0:00:25]} Ne6 {[%emt 0:02:06]} 33. Nd5+ {[%emt 0:00:05]} Ke8 {[%emt 0:02:48]} 34. Qe4 {[%emt 0:00:31]} Qd6 {[%emt 0:01:30]} 35. Qh7 {[%emt 0:00:59]} Nf4 {[%emt 0:02:19]} 36. Qg8+ {[%emt 0:00:58]} Kd7 {[%emt 0:01:22]} 37. Qxf7+ {[%emt 0:00:05]} Kd8 {[%emt 0:01:27]} 38. a3 {[%emt 0:01:33]} Nxd5 {[%emt 0:01:28]} 39. Qxd5 {[%emt 0:00:24]} Qxd5 {[%emt 0:00:15]} 40. cxd5 {[%emt 0:00:00]} Kd7 {[%emt 0:00:00]} 41. Kf2 {[%emt 0:00:09]} Kd6 {[%emt 0:00:40]} 42. Ke3 {[%emt 0:00:04]} Kxd5 {[%emt 0:00:16]} 43. g4 {[%emt 0:00:03]} Ke6 {[%emt 0:14:47]} 44. Ke4 {[%emt 0:00:38]} Kf6 {[%emt 0:07:07]} 45. h4 {[%emt 0:00:06]} Ke6 {[%emt 0:00:29]} 46. g5 {[%emt 0:00:36]} h5 {[%emt 0:00:14]} 47. b5 {[%emt 0:00:18]} Kd6 {[%emt 0:00:39]} 48. g6 {[%emt 0:00:11]} Ke6 {[%emt 0:00:21]} 49. g7 {[%emt 0:00:07]} Kf7 {[%emt 0:00:01]} 50. Kxe5 {[%emt 0:00:06]} Kxg7 {[%emt 0:00:06]} 51. Kf5 {[%emt 0:00:08]} Kf7 {[%emt 0:00:14]} 52. Kg5 {[%emt 0:00:05]} Ke6 {[%emt 0:00:02]} 53. Kxh5 {[%emt 0:00:13]} Kf5 {[%emt 0:00:03]} 54. a4 {[%emt 0:00:09]} 1-0

[Event "FIDE WYCC Open U14 2023"]
[Site "Montesilvano"]
[Date "2023.11.16"]
[Round "4.27"]
[White "Daaevik Wadhawan"]
[Black "Tao, Sihan"]
[Result "1-0"]
[ECO "A06"]
[WhiteElo "1810"]
[BlackElo "2122"]
[Annotator "RC"]
[PlyCount "89"]
[EventDate "2023.11.13"]
[EventType "swiss"]
[EventCountry "ITA"]
[SourceTitle "playchess.com"]
[Source "ChessBase"]
[SourceQuality "1"]
[TimeControl "40/5400+30:1800+30"]

1. Nf3 {[%emt 0:00:38]} d5 {[%emt 0:00:23]} 2. g3 {[%emt 0:00:03]} Nf6 {[%emt 0:00:07]} 3. Bg2 {[%emt 0:00:08]} e6 {[%emt 0:00:06]} 4. O-O {[%emt 0:00:16]} Be7 {[%emt 0:00:20]} 5. c4 {[%emt 0:00:02]} O-O {[%emt 0:03:30]} 6. b3 {[%emt 0:00:01]} b6 {[%emt 0:17:20]} 7. cxd5 {[%emt 0:00:07]} exd5 {[%emt 0:03:00]} 8. Bb2 {[%emt 0:00:01]} Bb7 {[%emt 0:00:46]} 9. e3 {[%emt 0:01:00]} Nbd7 {[%emt 0:03:51]} 10. Nc3 {[%emt 0:00:19]} a6 {[%emt 0:05:06]} 11. Rc1 {[%emt 0:00:27]} Re8 {[%emt 0:01:30]} 12. Re1 {[%emt 0:07:25]} Rc8 {[%emt 0:03:01]} 13. Ne2 {[%emt 0:01:04]} Bd6 {[%emt 0:09:21]} 14. Nf4 {[%emt 0:08:23]} Ne5 {[%emt 0:03:58]} 15. Nxe5 {[%emt 0:09:33]} Bxe5 {[%emt 0:00:11]} 16. Bxe5 {[%emt 0:02:08]} Rxe5 {[%emt 0:00:46]} 17. d4 {[%emt 0:00:28]} Re7 {[%emt 0:02:44]} 18. Bh3 {[%emt 0:05:27]} Ra8 {[%emt 0:04:31]} 19. Qc2 {[%emt 0:03:10]} Qd6 {[%emt 0:01:47]} 20. Nd3 {[%emt 0:04:04]} Rae8 {[%emt 0:07:40]} 21. Qb2 {[%emt 0:05:27]} Ne4 {[%emt 0:03:49]} 22. Bg2 {[%emt 0:02:18]} Bc8 {[%emt 0:02:23]} 23. f3 {[%emt 0:08:26]} Nf6 {[%emt 0:02:57]} 24. Qd2 {[%emt 0:01:42]} Nd7 {[%emt 0:03:40]} 25. b4 {[%emt 0:01:18]} Bb7 {[%emt 0:04:02]} 26. Rc3 {[%emt 0:03:50]} Nb8 {[%emt 0:02:24]} 27. a3 {[%emt 0:03:54]} Bc6 {[%emt 0:02:04]} 28. Nf2 {[%emt 0:03:42]} Bb5 {[%emt 0:01:47]} 29. Rd1 {[%emt 0:03:39]} Ba4 {[%emt 0:02:56]} 30. Rdc1 {[%emt 0:00:54]} h5 {[%emt 0:00:08]} 31. Nh3 {[%emt 0:07:05]} Nd7 {[%emt 0:03:25]} 32. Nf4 {[%emt 0:05:37]} Nf6 {[%emt 0:00:01]} 33. h4 {[%emt 0:00:16]} g6 {[%emt 0:00:43]} 34. Kf2 {[%emt 0:01:03]} Kg7 {[%emt 0:00:13]} 35. Bf1 {[%emt 0:01:13]} Bb5 {[%emt 0:00:42]} 36. Bxb5 {[%emt 0:03:17]} axb5 {[%emt 0:00:01]} 37. Qa2 {[%emt 0:00:23]} Qd7 {[%emt 0:00:58]} 38. Qc2 {[%emt 0:01:58]} Ra8 {[%emt 0:04:18]} 39. Rxc7 {[%emt 0:02:57]} Qxc7 {[%emt 0:00:01]} 40. Qxc7 {[%emt 0:00:00]} Rxc7 {[%emt 0:00:00]} 41. Rxc7 {[%emt 0:00:02]} Rxa3 {[%emt 0:00:02]} 42. Ne6+ {[%emt 0:01:34]} Kg8 {[%emt 0:17:16]} 43. Rc8+ {[%emt 0:00:15]} Kh7 {[%emt 0:00:06]} 44. Ng5+ {[%emt 0:00:32]} Kg7 {[%emt 0:00:11]} 45. Rc7 {[%emt 0:00:06]} 1-0

[Event "FIDE WYCC Open U14 2023"]
[Site "Montesilvano"]
[Date "2023.11.16"]
[Round "4.28"]
[White "Lin, Leo"]
[Black "Zhang, Kendrick Botong"]
[Result "1-0"]
[ECO "B22"]
[WhiteElo "2097"]
[BlackElo "1876"]
[Annotator "NA RC"]
[PlyCount "73"]
[EventDate "2023.11.13"]
[EventType "swiss"]
[EventCountry "ITA"]
[SourceTitle "playchess.com"]
[Source "ChessBase"]
[SourceQuality "1"]
[TimeControl "40/5400+30:1800+30"]

1. e4 {[%emt 0:01:25]} c5 {[%emt 0:00:05]} 2. c3 {[%emt 0:00:30]} d5 {[%emt 0:00:10]} 3. exd5 {[%emt 0:00:06]} Qxd5 {[%emt 0:00:06]} 4. d4 {[%emt 0:00:06]} Nf6 {[%emt 0:00:10]} 5. Nf3 {[%emt 0:00:09]} Bg4 {[%emt 0:00:06]} 6. dxc5 {[%emt 0:00:58]} Qxd1+ {[%emt 0:02:14]} 7. Kxd1 {[%emt 0:07:16]} e5 {[%emt 0:06:45]} 8. b4 {[%emt 0:00:06]} e4 {[%emt 0:05:41]} 9. h3 {[%emt 0:00:08]} exf3 {[%emt 0:05:57]} 10. hxg4 {[%emt 0:00:08]} Nxg4 {[%emt 0:10:07]} 11. Bb5+ {[%emt 0:07:31]} Nc6 {[%emt 0:04:54]} 12. Re1+ {[%emt 0:00:50]} Be7 {[%emt 0:05:03]} 13. gxf3 {[%emt 0:00:38]} Nxf2+ {[%emt 0:23:06]} 14. Kc2 {[%emt 0:02:25]} f6 {[%emt 0:27:44]} 15. Bf1 {[%emt 0:02:02]} Ne5 {[%emt 0:00:29]} 16. Be3 {[%emt 0:03:29]} Nxf3 {[%emt 0:00:14]} 17. Bb5+ {[%emt 0:00:09]} Kf8 {[%emt 0:01:05]} 18. Rf1 {[%emt 0:00:28]} Ng4 {[%emt 0:04:13]} 19. Rxf3 {[%emt 0:00:07]} Nxe3+ {[%emt 0:00:03]} 20. Rxe3 {[%emt 0:00:03]} h5 {[%emt 0:00:12]} 21. Nd2 {[%emt 0:00:17]} g5 {[%emt 0:00:14]} 22. Rae1 {[%emt 0:00:41]} Bd8 {[%emt 0:00:26]} 23. Re8+ {[%emt 0:00:15]} Kg7 {[%emt 0:00:04]} 24. Rxh8 {[%emt 0:00:37]} Kxh8 {[%emt 0:00:04]} 25. Be8 {[%emt 0:01:05]} h4 {[%emt 0:00:07]} 26. Bd7 {[%emt 0:00:21]} Bc7 {[%emt 0:00:52]} 27. Re7 {[%emt 0:00:11]} Bf4 {[%emt 0:00:46]} 28. Ne4 {[%emt 0:00:33]} Rf8 {[%emt 0:00:18]} 29. Bf5 {[%emt 0:00:32]} Kg8 {[%emt 0:00:49]} 30. Rxb7 {[%emt 0:00:35]} g4 {[%emt 0:00:22]} 31. Rh7 {[%emt 0:03:13]} Bg5 {[%emt 0:02:56]} 32. Rh5 {[%emt 0:00:15]} g3 {[%emt 0:00:32]} 33. Nxg5 {[%emt 0:00:07]} fxg5 {[%emt 0:00:16]} 34. Rxg5+ {[%emt 0:00:07]} Kf7 {[%emt 0:00:12]} 35. Bh3 {[%emt 0:00:30]} Ke7 {[%emt 0:00:23]} 36. Rg7+ {[%emt 0:00:23]} Ke8 {[%emt 0:00:11]} 37. c6 {[%emt 0:00:13]} 1-0

[Event "FIDE WYCC Open U14 2023"]
[Site "Montesilvano"]
[Date "2023.11.16"]
[Round "4.29"]
[White "Bolat, Inayat"]
[Black "Zhang, Brian"]
[Result "1-0"]
[ECO "B12"]
[WhiteElo "2088"]
[BlackElo "1867"]
[Annotator "NA RC"]
[PlyCount "43"]
[EventDate "2023.11.13"]
[EventType "swiss"]
[EventCountry "ITA"]
[SourceTitle "playchess.com"]
[Source "ChessBase"]
[SourceQuality "1"]
[TimeControl "40/5400+30:1800+30"]

1. e4 {[%emt 0:00:05]} c6 {[%emt 0:00:11]} 2. d4 {[%emt 0:01:56]} d5 {[%emt 0:00:12]} 3. f3 {[%emt 0:00:25]} e6 {[%emt 0:02:37]} 4. Nc3 {[%emt 0:00:28]} Bb4 {[%emt 0:08:16]} 5. Bd2 {[%emt 0:04:44]} Ne7 {[%emt 0:03:21]} 6. Qe2 {[%emt 0:07:19]} b6 {[%emt 0:07:11]} 7. Qf2 {[%emt 0:03:03]} O-O {[%emt 0:12:41]} 8. O-O-O {[%emt 0:00:32]} Ba6 {[%emt 0:12:15]} 9. Bxa6 {[%emt 0:02:24]} Nxa6 {[%emt 0:00:15]} 10. h4 {[%emt 0:00:25]} Rc8 {[%emt 0:05:38]} 11. h5 {[%emt 0:01:07]} c5 {[%emt 0:13:39]} 12. h6 {[%emt 0:03:47]} g6 {[%emt 0:03:35]} 13. Nh3 {[%emt 0:10:22]} Qc7 {[%emt 0:07:36]} 14. a3 {[%emt 0:01:53]} Ba5 {[%emt 0:03:43]} 15. dxc5 {[%emt 0:17:59]} Nxc5 {[%emt 0:10:46]} 16. Rhe1 {[%emt 0:07:39]} Rfd8 {[%emt 0:05:09]} 17. Qh4 {[%emt 0:01:54]} f5 {[%emt 0:01:21]} 18. b4 {[%emt 0:05:37]} d4 {[%emt 0:00:28]} 19. Qf6 {[%emt 0:00:26]} Nd5 {[%emt 0:00:34]} 20. exd5 {[%emt 0:00:34]} Rf8 {[%emt 0:00:29]} 21. Qxd4 {[%emt 0:01:14]} Na4 {[%emt 0:00:29]} 22. Qg7+ {[%emt 0:00:14]} 1-0

[Event "FIDE WYCC Open U14 2023"]
[Site "Montesilvano"]
[Date "2023.11.16"]
[Round "4.30"]
[White "Kao, Jamison Edrich"]
[Black "Vommaro, Stanislao"]
[Result "1/2-1/2"]
[ECO "B95"]
[WhiteElo "1701"]
[BlackElo "2083"]
[Annotator "RC"]
[PlyCount "115"]
[EventDate "2023.11.13"]
[EventType "swiss"]
[EventCountry "ITA"]
[SourceTitle "playchess.com"]
[Source "ChessBase"]
[SourceQuality "1"]
[TimeControl "40/5400+30:1800+30"]

1. e4 {[%emt 0:00:01]} c5 {[%emt 0:01:00]} 2. Nf3 {[%emt 0:00:03]} d6 {[%emt 0:00:43]} 3. d4 {[%emt 0:00:05]} cxd4 {[%emt 0:00:31]} 4. Nxd4 {[%emt 0:00:04]} Nf6 {[%emt 0:00:30]} 5. Nc3 {[%emt 0:00:03]} a6 {[%emt 0:00:39]} 6. Bg5 {[%emt 0:00:09]} e6 {[%emt 0:00:50]} 7. Qe2 {[%emt 0:00:02]} Nbd7 {[%emt 0:21:18]} 8. f4 {[%emt 0:00:05]} Qc7 {[%emt 0:13:36]} 9. O-O-O {[%emt 0:00:11]} Be7 {[%emt 0:01:42]} 10. g4 {[%emt 0:00:09]} b5 {[%emt 0:16:26]} 11. a3 {[%emt 0:00:03]} Rb8 {[%emt 0:02:11]} 12. Bxf6 {[%emt 0:04:40]} Nxf6 {[%emt 0:00:35]} 13. g5 {[%emt 0:06:15]} Nd7 {[%emt 0:00:17]} 14. h4 {[%emt 0:01:08]} b4 {[%emt 0:10:54]} 15. axb4 {[%emt 0:00:26]} Rxb4 {[%emt 0:00:10]} 16. f5 {[%emt 0:10:58]} Ne5 {[%emt 0:00:55]} 17. fxe6 {[%emt 0:00:02]} fxe6 {[%emt 0:00:25]} 18. Bh3 {[%emt 0:17:21]} Qa5 {[%emt 0:09:37]} 19. Nb3 {[%emt 0:08:37]} Qb6 {[%emt 0:01:51]} 20. Rhf1 {[%emt 0:00:45]} Nc4 {[%emt 0:07:14]} 21. Rd4 {[%emt 0:01:04]} Ne5 {[%emt 0:03:48]} 22. Qd1 {[%emt 0:14:22]} a5 {[%emt 0:02:18]} 23. Ne2 {[%emt 0:02:17]} a4 {[%emt 0:01:24]} 24. Rxb4 {[%emt 0:00:32]} Qxb4 {[%emt 0:00:08]} 25. Qd4 {[%emt 0:00:02]} Nc4 {[%emt 0:01:51]} 26. Nd2 {[%emt 0:04:24]} Qxd2+ {[%emt 0:00:27]} 27. Qxd2 {[%emt 0:00:02]} Nxd2 {[%emt 0:00:10]} 28. Kxd2 {[%emt 0:00:02]} h6 {[%emt 0:00:43]} 29. g6 {[%emt 0:10:31]} Bxh4 {[%emt 0:00:21]} 30. Nd4 {[%emt 0:00:22]} Bf6 {[%emt 0:01:32]} 31. Nxe6 {[%emt 0:00:03]} Ke7 {[%emt 0:00:35]} 32. Nf4 {[%emt 0:00:24]} Bxh3 {[%emt 0:00:40]} 33. Nxh3 {[%emt 0:00:03]} Rb8 {[%emt 0:00:56]} 34. Nf4 {[%emt 0:06:48]} Bg5 {[%emt 0:00:36]} 35. Kc3 {[%emt 0:00:15]} Bxf4 {[%emt 0:00:06]} 36. Rxf4 {[%emt 0:00:03]} Rf8 {[%emt 0:00:29]} 37. Rh4 {[%emt 0:14:30]} Rc8+ {[%emt 0:00:15]} 38. Kd3 {[%emt 0:00:19]} Ke6 {[%emt 0:00:45]} 39. Rf4 {[%emt 0:00:29]} Rc7 {[%emt 0:00:51]} 40. Rf5 {[%emt 0:00:00]} Ra7 {[%emt 0:00:00]} 41. c3 {[%emt 0:01:49]} Rb7 {[%emt 0:04:16]} 42. Kc2 {[%emt 0:01:11]} Ra7 {[%emt 0:07:07]} 43. Kd2 {[%emt 0:05:12]} Rb7 {[%emt 0:06:29]} 44. Kc1 {[%emt 0:05:12]} Ra7 {[%emt 0:02:00]} 45. Kc2 {[%emt 0:00:12]} h5 {[%emt 0:03:49]} 46. Rxh5 {[%emt 0:07:40]} Kf6 {[%emt 0:00:18]} 47. Rb5 {[%emt 0:00:04]} Ra6 {[%emt 0:02:44]} 48. Kd3 {[%emt 0:04:26]} Kxg6 {[%emt 0:01:01]} 49. Rf5 {[%emt 0:00:04]} Rb6 {[%emt 0:02:40]} 50. Ra5 {[%emt 0:01:43]} Rxb2 {[%emt 0:01:02]} 51. Rxa4 {[%emt 0:00:04]} Kf6 {[%emt 0:01:29]} 52. Ra6 {[%emt 0:01:13]} Ke6 {[%emt 0:01:10]} 53. c4 {[%emt 0:00:03]} Ke5 {[%emt 0:00:39]} 54. Ra5+ {[%emt 0:01:08]} Ke6 {[%emt 0:00:27]} 55. Ra6 {[%emt 0:00:47]} Ke5 {[%emt 0:00:23]} 56. Ra5+ {[%emt 0:00:09]} Ke6 {[%emt 0:00:31]} 57. Ra6 {[%emt 0:01:01]} Ke5 {[%emt 0:00:36]} 58. Ra5+ {[%emt 0:00:37]} 1/2-1/2

[Event "FIDE WYCC Open U14 2023"]
[Site "Montesilvano"]
[Date "2023.11.16"]
[Round "4.31"]
[White "Segizbayev, Iskander"]
[Black "Bharadia Yash"]
[Result "0-1"]
[ECO "B90"]
[WhiteElo "1605"]
[BlackElo "2071"]
[Annotator "NA RC"]
[PlyCount "64"]
[EventDate "2023.11.13"]
[EventType "swiss"]
[EventCountry "ITA"]
[SourceTitle "playchess.com"]
[Source "ChessBase"]
[SourceQuality "1"]
[TimeControl "40/5400+30:1800+30"]

1. e4 {[%emt 0:00:03]} c5 {[%emt 0:00:02]} 2. Nf3 {[%emt 0:00:06]} d6 {[%emt 0:00:06]} 3. d4 {[%emt 0:00:03]} cxd4 {[%emt 0:00:08]} 4. Nxd4 {[%emt 0:00:02]} Nf6 {[%emt 0:00:08]} 5. Nc3 {[%emt 0:00:11]} a6 {[%emt 0:00:07]} 6. f3 {[%emt 0:00:18]} e5 {[%emt 0:00:47]} 7. Nb3 {[%emt 0:00:11]} Be6 {[%emt 0:00:12]} 8. Be3 {[%emt 0:00:20]} h5 {[%emt 0:05:11]} 9. Qd2 {[%emt 0:02:17]} Nbd7 {[%emt 0:01:01]} 10. O-O-O {[%emt 0:02:51]} Rc8 {[%emt 0:00:52]} 11. Kb1 {[%emt 0:08:53]} Be7 {[%emt 0:05:59]} 12. Rg1 {[%emt 0:14:38]} Nb6 {[%emt 0:15:31]} 13. Qf2 Nc4 {[%emt 0:03:17]} 14. Bxc4 {[%emt 0:19:01]} Rxc4 {[%emt 0:06:12]} 15. Bb6 {[%emt 0:12:55]} Qd7 {[%emt 0:13:05]} 16. h3 {[%emt 0:08:46]} h4 {[%emt 0:07:14]} 17. f4 {[%emt 0:05:44]} Nxe4 {[%emt 0:09:14]} 18. Nxe4 {[%emt 0:00:34]} Rxe4 {[%emt 0:00:07]} 19. fxe5 {[%emt 0:05:16]} Rxe5 {[%emt 0:02:26]} 20. Rd3 {[%emt 0:11:44]} O-O {[%emt 0:06:05]} 21. Rgd1 {[%emt 0:01:14]} Rc8 {[%emt 0:03:41]} 22. Be3 {[%emt 0:03:01]} Qa4 {[%emt 0:04:23]} 23. Bf4 {[%emt 0:01:53]} Rf5 {[%emt 0:00:27]} 24. Rd4 {[%emt 0:00:14]} Rc4 {[%emt 0:00:08]} 25. Qe3 {[%emt 0:02:11]} Rxd4 {[%emt 0:01:10]} 26. Rxd4 {[%emt 0:00:04]} Qc6 {[%emt 0:00:19]} 27. Rd2 {[%emt 0:00:52]} Qc4 {[%emt 0:00:38]} 28. Rf2 {[%emt 0:00:31]} a5 {[%emt 0:00:56]} 29. Nc1 {[%emt 0:00:34]} a4 {[%emt 0:00:18]} 30. Qd2 {[%emt 0:00:31]} Qe4 {[%emt 0:01:17]} 31. Rf3 {[%emt 0:00:26]} g5 {[%emt 0:00:56]} 32. Bxd6 {[%emt 0:00:27]} Rd5 {[%emt 0:00:09]} 0-1

[Event "FIDE WYCC Open U14 2023"]
[Site "Montesilvano"]
[Date "2023.11.16"]
[Round "4.32"]
[White "Kuziev, Miraziz"]
[Black "Boci, Mateo"]
[Result "1-0"]
[ECO "E46"]
[WhiteElo "2053"]
[BlackElo "1832"]
[Annotator "NA RC"]
[PlyCount "113"]
[EventDate "2023.11.13"]
[EventType "swiss"]
[EventCountry "ITA"]
[SourceTitle "playchess.com"]
[Source "ChessBase"]
[SourceQuality "1"]
[TimeControl "40/5400+30:1800+30"]

1. d4 {[%emt 0:01:13]} Nf6 {[%emt 0:00:21]} 2. c4 {[%emt 0:00:10]} e6 {[%emt 0:00:11]} 3. Nc3 {[%emt 0:00:04]} Bb4 {[%emt 0:00:33]} 4. e3 {[%emt 0:00:09]} O-O {[%emt 0:00:15]} 5. Bd2 {[%emt 0:00:07]} b6 {[%emt 0:01:41]} 6. Nf3 {[%emt 0:00:11]} Bb7 {[%emt 0:00:50]} 7. Bd3 {[%emt 0:00:09]} d5 {[%emt 0:00:39]} 8. cxd5 {[%emt 0:00:08]} exd5 {[%emt 0:00:40]} 9. Rc1 {[%emt 0:00:05]} a6 {[%emt 0:01:54]} 10. Ne5 {[%emt 0:00:06]} Nbd7 {[%emt 0:01:05]} 11. f4 {[%emt 0:00:06]} Re8 {[%emt 0:01:13]} 12. O-O {[%emt 0:00:06]} c5 {[%emt 0:04:32]} 13. a3 {[%emt 0:01:12]} Bxc3 {[%emt 0:01:16]} 14. Bxc3 {[%emt 0:00:06]} c4 {[%emt 0:06:46]} 15. Bf5 {[%emt 0:01:33]} Bc8 {[%emt 0:04:06]} 16. Qf3 {[%emt 0:00:37]} Nf8 {[%emt 0:05:14]} 17. Bb1 {[%emt 0:01:47]} Bb7 {[%emt 0:04:13]} 18. Nxc4 {[%emt 0:08:10]} dxc4 19. Qxb7 {[%emt 0:02:02]} Rxe3 {[%emt 0:05:14]} 20. Rce1 {[%emt 0:00:05]} Rxe1 {[%emt 0:01:36]} 21. Rxe1 {[%emt 0:18:47]} Ne6 {[%emt 0:09:26]} 22. Be4 {[%emt 0:04:44]} Rc8 {[%emt 0:09:04]} 23. Bf5 {[%emt 0:00:30]} Rb8 {[%emt 0:00:30]} 24. Qxa6 {[%emt 0:00:30]} Nxd4 {[%emt 0:00:30]} 25. Bb1 {[%emt 0:06:51]} b5 {[%emt 0:06:16]} 26. Qa7 {[%emt 0:01:15]} Nc6 {[%emt 0:01:22]} 27. Qc5 {[%emt 0:00:42]} Qb6 {[%emt 0:00:45]} 28. Qxb6 {[%emt 0:00:07]} Rxb6 {[%emt 0:00:09]} 29. Rd1 {[%emt 0:01:56]} Rb8 {[%emt 0:00:37]} 30. Rd6 {[%emt 0:06:29]} Ne7 {[%emt 0:01:36]} 31. h3 {[%emt 0:00:15]} Ned5 {[%emt 0:03:18]} 32. Be5 {[%emt 0:00:06]} Re8 {[%emt 0:00:33]} 33. g4 {[%emt 0:00:03]} Re6 {[%emt 0:03:04]} 34. Rd8+ {[%emt 0:00:07]} Re8 {[%emt 0:00:04]} 35. Rxe8+ {[%emt 0:02:04]} Nxe8 {[%emt 0:00:02]} 36. Be4 {[%emt 0:00:06]} Ndc7 {[%emt 0:01:21]} 37. f5 {[%emt 0:03:04]} f6 {[%emt 0:02:07]} 38. Bf4 {[%emt 0:00:05]} Kf7 {[%emt 0:01:06]} 39. Bc6 {[%emt 0:00:05]} Ke7 {[%emt 0:00:24]} 40. Kf2 {[%emt 0:00:00]} g6 {[%emt 0:00:00]} 41. fxg6 {[%emt 0:01:07]} hxg6 {[%emt 0:00:34]} 42. h4 {[%emt 0:00:06]} Ne6 {[%emt 0:01:06]} 43. Ke3 {[%emt 0:01:44]} g5 {[%emt 0:00:34]} 44. Bh2 {[%emt 0:00:04]} gxh4 {[%emt 0:00:34]} 45. Bxb5 {[%emt 0:00:04]} Nd6 {[%emt 0:00:08]} 46. Bxd6+ {[%emt 0:01:54]} Kxd6 {[%emt 0:00:01]} 47. Bxc4 {[%emt 0:00:10]} Ng5 {[%emt 0:02:54]} 48. Kf4 {[%emt 0:00:16]} Nh3+ {[%emt 0:02:20]} 49. Kf5 {[%emt 0:00:10]} Nf2 {[%emt 0:00:12]} 50. Be2 {[%emt 0:03:53]} h3 {[%emt 0:04:12]} 51. b4 {[%emt 0:00:05]} Kc6 {[%emt 0:02:36]} 52. Bf3+ {[%emt 0:00:45]} Kd7 {[%emt 0:01:28]} 53. Kxf6 {[%emt 0:00:22]} h2 {[%emt 0:00:09]} 54. g5 {[%emt 0:00:25]} Ke8 {[%emt 0:00:08]} 55. b5 {[%emt 0:00:26]} Nd3 {[%emt 0:00:25]} 56. g6 {[%emt 0:00:36]} Kf8 {[%emt 0:00:02]} 57. g7+ {[%emt 0:00:05]} 1-0

[Event "FIDE WYCC Open U14 2023"]
[Site "Montesilvano"]
[Date "2023.11.16"]
[Round "4.33"]
[White "Soni, Arjun"]
[Black "Ji, Jiahao Eric"]
[Result "1/2-1/2"]
[ECO "B90"]
[WhiteElo "1600"]
[BlackElo "2045"]
[Annotator "NA RC"]
[PlyCount "63"]
[EventDate "2023.11.13"]
[EventType "swiss"]
[EventCountry "ITA"]
[SourceTitle "playchess.com"]
[Source "ChessBase"]
[SourceQuality "1"]
[TimeControl "40/5400+30:1800+30"]

1. e4 {[%emt 0:00:04]} c5 {[%emt 0:00:02]} 2. Nf3 {[%emt 0:00:06]} d6 {[%emt 0:00:13]} 3. d4 {[%emt 0:00:05]} cxd4 {[%emt 0:00:13]} 4. Nxd4 {[%emt 0:00:05]} Nf6 {[%emt 0:00:03]} 5. Nc3 {[%emt 0:00:07]} a6 {[%emt 0:00:15]} 6. Be3 {[%emt 0:00:04]} e5 {[%emt 0:00:05]} 7. Nf3 {[%emt 0:00:08]} Be7 {[%emt 0:04:09]} 8. Bc4 {[%emt 0:01:16]} O-O {[%emt 0:00:49]} 9. O-O {[%emt 0:06:13]} Be6 {[%emt 0:05:09]} 10. Bb3 {[%emt 0:04:24]} h6 {[%emt 0:02:59]} 11. Qe2 {[%emt 0:04:01]} Nbd7 {[%emt 0:05:35]} 12. Rfd1 {[%emt 0:14:36]} Qc7 {[%emt 0:04:05]} 13. Nh4 {[%emt 0:23:46]} Kh7 {[%emt 0:09:16]} 14. Qd3 {[%emt 0:13:35]} g6 {[%emt 0:07:11]} 15. Qd2 {[%emt 0:07:26]} Ng4 {[%emt 0:02:33]} 16. Nf3 {[%emt 0:01:47]} Rac8 {[%emt 0:05:46]} 17. h3 {[%emt 0:03:44]} Nxe3 {[%emt 0:00:26]} 18. Qxe3 {[%emt 0:00:03]} Nb6 {[%emt 0:03:51]} 19. Rac1 {[%emt 0:03:03]} Nc4 {[%emt 0:02:23]} 20. Bxc4 {[%emt 0:02:14]} Qxc4 {[%emt 0:01:00]} 21. Qd3 {[%emt 0:04:21]} b5 {[%emt 0:07:58]} 22. Nd5 {[%emt 0:02:23]} Bxd5 {[%emt 0:06:37]} 23. Qxd5 {[%emt 0:00:02]} Qxd5 {[%emt 0:00:28]} 24. Rxd5 {[%emt 0:00:06]} Rc6 {[%emt 0:01:11]} 25. c3 {[%emt 0:00:46]} Rfc8 {[%emt 0:01:17]} 26. Rcd1 {[%emt 0:00:31]} b4 {[%emt 0:11:20]} 27. cxb4 {[%emt 0:00:58]} Rc2 {[%emt 0:00:24]} 28. R1d2 {[%emt 0:02:03]} R2c4 {[%emt 0:00:54]} 29. b5 {[%emt 0:00:42]} Rxe4 {[%emt 0:01:36]} 30. bxa6 {[%emt 0:01:31]} Ra4 {[%emt 0:00:17]} 31. Rb5 {[%emt 0:01:31]} Rxa6 {[%emt 0:00:09]} 32. Rb7 1/2-1/2